fUSD/lending_fUSD_20251221
["ID","MTS","AMOUNT","RATE_DAILY","PERIOD"]
[399369713,1766321447258,-2013907.72512648,0.00017,2]
[399369715,1766321448831,-6675.54360206,0.00017,2]
[399369716,1766321448842,-1573.32360341,0.00017,2]
[399369717,1766321448853,-1405.08006027,0.00017,2]
[399369718,1766321448933,-299.00000001,0.00013273,2]
[399369719,1766321448944,-237.20400276,0.00013273,2]
[399369720,1766321448953,-475.92599724,0.00016896,2]
[399369721,1766321448966,-424.0721538,0.00016896,2]
[399369722,1766321448979,-899.99815104,0.00016897,2]
[399369723,1766321448988,-36368.15144483,0.00017,2]
[399369724,1766321449203,-802.58,0.00016898,2]
[399369725,1766321449214,-97.41815104,0.00016898,2]
[399369726,1766321449224,-899.99815104,0.00016898,2]
[399369727,1766321449233,-899.99815104,0.00016899,2]
[399369728,1766321449243,-899.99815104,0.000169,2]
[399369729,1766321449253,-71573.44665952,0.00017,2]
[399369730,1766321449265,-1322.89955036,0.00017,2]
[399369735,1766321455287,999.0,0.00032876,120]
[399369737,1766321455531,999.0,0.00033972,120]
[399369738,1766321455769,440.69413697,0.00035068,120]
[399369750,1766321529377,151.0,0.00035252,31]
[399369756,1766321552758,151.0,0.00033,31]
[399369768,1766321603867,500.0,0.00035616,30]
[399369777,1766321636331,500.0,0.00035616,30]
[399369783,1766321650511,500.0,0.00035616,30]
[399369791,1766321671611,500.0,0.00035616,30]
[399369805,1766321805089,-4038.28541477,0.00011423,2]
[399369806,1766321805113,-952.34898462,0.00011424,2]
[399369807,1766321805136,-109.36560061,0.00011473,2]
[399369814,1766321831395,500.0,0.00035616,30]
[399369815,1766321831999,162.433,0.00035616,30]
[399369816,1766321837037,-635.62375439,0.00011422,2]
[399369817,1766321844777,-337.91646303,0.00011422,2]
[399369818,1766321844798,-973.54021742,0.00011423,2]
[399369819,1766321844818,-973.54021742,0.00011424,2]
[399369820,1766321844839,-140.63439939,0.00011473,2]
[399369821,1766321844859,-250.0,0.00011503,2]
[399369822,1766321844880,-300.0,0.00011521,2]
[399369823,1766321844900,-300.0,0.00011522,2]
[399369824,1766321844921,-1200.0,0.00011522,2]
[399369825,1766321844941,-1101.62355976,0.00011522,3]
[399369826,1766321844962,-150.0,0.00011522,2]
[399369827,1766321844987,-500.0,0.00011522,2]
[399369828,1766321845009,-196.49291425,0.00011522,2]
[399369829,1766321845032,-441.18362585,0.00011522,2]
[399369830,1766321845058,-500.0,0.00011522,2]
[399369831,1766321845083,-500.0,0.00011522,2]
[399369832,1766321845110,-500.0,0.00011522,2]
[399369833,1766321845138,-500.0,0.00011522,2]
[399369834,1766321845164,-500.0,0.00011522,2]
[399369835,1766321845190,-500.0,0.00011522,2]
[399369836,1766321845215,-500.0,0.00011522,2]
[399369837,1766321845240,-500.0,0.00011522,2]
[399369838,1766321845264,-500.0,0.00011522,2]
[399369839,1766321845289,-500.0,0.00011522,2]
[399369840,1766321845315,-500.0,0.00011522,2]
[399369841,1766321845339,-500.0,0.00011522,2]
[399369842,1766321845363,-500.0,0.00011522,2]
[399369843,1766321845387,-500.0,0.00011522,2]
[399369844,1766321845412,-500.0,0.00011522,2]
[399369845,1766321845436,-500.0,0.00011522,2]
[399369846,1766321845461,-500.0,0.00011522,2]
[399369847,1766321845486,-500.0,0.00011522,2]
[399369848,1766321845511,-500.0,0.00011522,2]
[399369849,1766321845536,-500.0,0.00011522,2]
[399369850,1766321845561,-500.0,0.00011522,2]
[399369851,1766321845594,-500.0,0.00011522,2]
[399369852,1766321845627,-500.0,0.00011522,2]
[399369853,1766321845655,-500.0,0.00011522,2]
[399369854,1766321845680,-500.0,0.00011522,2]
[399369855,1766321845705,-500.0,0.00011522,2]
[399369856,1766321845730,-500.0,0.00011522,2]
[399369857,1766321845755,-380.98824536,0.00011522,2]
[399369858,1766321845780,-500.0,0.00011522,2]
[399369859,1766321845806,-500.0,0.00011522,2]
[399369860,1766321845831,-500.0,0.00011522,2]
[399369861,1766321845857,-500.0,0.00011522,2]
[399369862,1766321845883,-500.0,0.00011522,2]
[399369863,1766321845909,-500.0,0.00011522,2]
[399369864,1766321845931,-229.47321302,0.00011522,2]
[399369865,1766321845958,-26024.6071445,0.00011523,2]
[399369873,1766321980016,-16828.67078102,0.00011424,2]
[399369874,1766321980041,-15287.0086892,0.00011517,2]
[399369875,1766321980065,-500.0,0.00011522,2]
[399369876,1766321980089,-499.67824112,0.00011522,2]
[399369877,1766321980117,-157474.64228866,0.00011523,2]
[399369881,1766322058327,241.0,0.00033151,30]
[399369882,1766322058414,241.0,0.00034521,30]
[399369886,1766322067646,5449.999999,0.00035616,120]
[399369887,1766322107558,-234.7521871,0.00011293,2]
[399369896,1766322244709,303.0,0.00035,30]
[399369922,1766322391640,-147.5578129,0.00011293,2]
[399369923,1766322391665,-582.38757181,0.00011422,2]
[399369933,1766322421940,-196.61821461,0.00011161,2]
[399369934,1766322423396,-180.71844043,0.00011161,2]
[399369935,1766322425815,-122.66334496,0.00011161,2]
[399369936,1766322425839,-75.53369224,0.00011291,2]
[399369939,1766322437012,-272.15512232,0.00011081,2]
[399369940,1766322441384,-215.25675969,0.00011081,2]
[399369942,1766322445517,-283.88811799,0.00011081,2]
[399369943,1766322445539,-35.16643118,0.00011291,2]
[399369951,1766322541563,1000.0,0.00035615,30]
[399369952,1766322541890,1000.0,0.00035615,30]
[399369953,1766322542155,1000.0,0.00035251,30]
[399369966,1766322617553,-222.62718156,0.00011291,2]
[399369972,1766322632145,-19.37281844,0.00011291,2]
[399369973,1766322632155,-189.29987658,0.00011291,2]
[399369974,1766322632164,-151.0,0.0001132,2]
[399369975,1766322632173,-300.0,0.00011322,2]
[399369976,1766322632182,-97.03823167,0.00011322,2]
[399369977,1766322632193,-473.32,0.00011322,2]
[399369978,1766322632208,-460.7139892,0.00011322,2]
[399369979,1766322632220,-168.92777913,0.00011322,2]
[399369980,1766322632229,-1167.51840477,0.00011322,2]
[399369981,1766322632241,-974.17884844,0.00011322,2]
[399369982,1766322632253,-867.29465335,0.00011322,2]
[399369983,1766322632264,-339.75260614,0.00011322,2]
[399369984,1766322632276,-4806.29998,0.00011322,2]
[399369985,1766322632287,-1468.67056078,0.00011322,2]
[399369986,1766322632299,-2073.29589676,0.00011322,2]
[399369987,1766322632315,-875.08241613,0.00011322,2]
[399369988,1766322632327,-5626.02479939,0.00011322,2]
[399369989,1766322632337,-8932.54942923,0.00011323,2]
[399369990,1766322632347,-1482.30532491,0.00011323,2]
[399369991,1766322632358,-580.36061433,0.00011323,2]
[399369992,1766322632370,-1144.96358765,0.00011323,2]
[399369993,1766322632381,-96974.82223775,0.00011323,2]
[399369994,1766322632392,-123111.04955872,0.00011323,2]
[399369995,1766322638264,-251.18004567,0.00011322,2]
[399369996,1766322638274,-500.0,0.00011322,2]
[399369997,1766322638285,-500.0,0.00011322,2]
[399369998,1766322638294,-500.0,0.00011322,2]
[399369999,1766322638304,-500.0,0.00011322,2]
[399370000,1766322638313,-500.0,0.00011322,2]
[399370001,1766322638323,-500.0,0.00011322,2]
[399370002,1766322638337,-500.0,0.00011322,2]
[399370003,1766322638346,-500.0,0.00011322,2]
[399370004,1766322638356,-589.8873076,0.00011322,2]
[399370005,1766322638365,-500.0,0.00011322,2]
[399370006,1766322638375,-500.0,0.00011322,2]
[399370007,1766322638385,-500.0,0.00011322,2]
[399370008,1766322638395,-500.0,0.00011322,2]
[399370009,1766322638404,-499.37615773,0.00011322,2]
[399370010,1766322638413,-500.0,0.00011322,2]
[399370011,1766322638423,-500.0,0.00011322,2]
[399370012,1766322638432,-500.0,0.00011322,2]
[399370013,1766322638441,-500.0,0.00011322,2]
[399370014,1766322638450,-500.0,0.00011322,2]
[399370015,1766322638460,-500.0,0.00011322,2]
[399370016,1766322638472,-500.0,0.00011322,2]
[399370017,1766322638482,-500.0,0.00011322,2]
[399370018,1766322638491,-500.0,0.00011322,2]
[399370019,1766322638501,-767773.94924741,0.00011323,2]
[399370020,1766322638510,-150.0,0.00011422,2]
[399370021,1766322638519,-4099.563,0.00011423,2]
[399370022,1766322638529,-4527.9787,0.00011423,2]
[399370023,1766322638539,-2500.0,0.00011423,2]
[399370024,1766322638548,-11643.22209035,0.00011424,2]
[399370025,1766322638558,-175.5229424,0.00011424,2]
[399370026,1766322638568,-4485.2563,0.00011507,2]
[399370027,1766322638579,-7087.5079312,0.00011515,2]
[399370028,1766322638588,-763.1939596,0.00011515,2]
[399370029,1766322638597,-1436.7711616,0.00011515,2]
[399370030,1766322638607,-151.0,0.00011516,2]
[399370031,1766322638617,-151.0,0.00011516,2]
[399370032,1766322638627,-151.0,0.00011516,2]
[399370033,1766322638636,-151.0,0.00011516,2]
[399370034,1766322638647,-151.0,0.00011516,2]
[399370035,1766322638656,-151.0,0.00011516,2]
[399370036,1766322638666,-151.0,0.00011516,2]
[399370037,1766322638675,-151.0,0.00011516,2]
[399370038,1766322638684,-151.0,0.00011516,2]
[399370039,1766322638693,-151.0,0.00011516,2]
[399370040,1766322638703,-151.0,0.00011516,2]
[399370041,1766322638713,-151.0,0.00011516,2]
[399370042,1766322638722,-151.0,0.00011516,2]
[399370043,1766322638731,-151.0,0.00011516,2]
[399370044,1766322638741,-151.0,0.00011516,2]
[399370045,1766322638750,-151.0,0.00011516,2]
[399370046,1766322638769,-151.0,0.00011516,2]
[399370047,1766322638780,-151.0,0.00011516,2]
[399370048,1766322638790,-151.0,0.00011516,2]
[399370049,1766322638799,-151.0,0.00011516,2]
[399370050,1766322638809,-2145.07550922,0.00011522,2]
[399370051,1766322638819,-221.43334789,0.00011522,3]
[399370052,1766322638828,-2505.83876066,0.00011522,2]
[399370053,1766322638838,-9999.99,0.00011522,2]
[399370054,1766322638847,-151.0,0.00011523,2]
[399370055,1766322638857,-300.58648083,0.00011523,2]
[399370057,1766322638867,-11877.2,0.00011523,2]
[399370059,1766322638876,-1000.0,0.00011524,2]
[399370061,1766322638886,-33486.8341,0.00011524,2]
[399370063,1766322638895,-500.0,0.00011524,2]
[399370065,1766322638905,-1600.0,0.00011544,2]
[399370066,1766322638914,-500.0,0.00011798,2]
[399370067,1766322638924,-18198.11816569,0.00011942,2]
[399370068,1766322638933,-11643.22209029,0.00012032,2]
[399370069,1766322638943,-500.0,0.00012072,2]
[399370070,1766322638952,-152.68,0.00012095,2]
[399370071,1766322638962,-195.0,0.00012277,2]
[399370072,1766322638971,-300.0,0.00012277,2]
[399370073,1766322638980,-193.0,0.00012277,2]
[399370074,1766322638990,-35520.29279086,0.00012304,2]
[399370075,1766322638999,-500.0,0.00012346,2]
[399370076,1766322639008,-195.0,0.0001242,2]
[399370077,1766322639018,-250.0,0.0001242,2]
[399370078,1766322639028,-420.0,0.00012438,2]
[399370079,1766322639038,-1680.0,0.00012454,2]
[399370080,1766322639049,-255.0,0.00012484,2]
[399370081,1766322639058,-235.71154484,0.0001262,2]
[399370082,1766322639068,-11643.22209029,0.00012641,2]
[399370083,1766322639078,-3240.0,0.00012709,2]
[399370084,1766322639088,-763.1939596,0.0001277,2]
[399370085,1766322639099,-15287.0086892,0.00012773,2]
[399370086,1766322639109,-1600.0,0.00012987,2]
[399370087,1766322639119,-500.0,0.00013041,2]
[399370088,1766322639129,-1282.06982713,0.00013139,2]
[399370089,1766322639138,-1539.26800577,0.00013149,2]
[399370090,1766322639148,-1581.4367797,0.00013167,2]
[399370091,1766322639158,-11643.22209029,0.00013249,2]
[399370092,1766322639168,-172.62322663,0.00013273,2]
[399370093,1766322639178,-500.0,0.00013273,2]
[399370094,1766322639188,-500.0,0.00013273,2]
[399370095,1766322639198,-500.28275711,0.00013273,2]
[399370096,1766322639208,-535.80488435,0.00013273,2]
[399370097,1766322639218,-166.07222089,0.00013273,2]
[399370098,1766322639228,-163.12595914,0.00013273,2]
[399370099,1766322639238,-165.55250469,0.00013273,2]
[399370100,1766322639247,-235.5477362,0.00013273,2]
[399370101,1766322639257,-172.78810174,0.00013273,2]
[399370102,1766322639267,-500.0,0.00013273,2]
[399370103,1766322639277,-163.74041745,0.00013273,2]
[399370104,1766322639288,-224.07561459,0.00013273,2]
[399370105,1766322639299,-500.0,0.00013273,2]
[399370106,1766322639314,-501.13880069,0.00013273,2]
[399370107,1766322639324,-169.30599703,0.00013273,2]
[399370108,1766322639333,-500.0,0.00013273,2]
[399370109,1766322639346,-500.0,0.00013273,2]
[399370110,1766322639360,-500.0,0.00013273,2]
[399370111,1766322639370,-500.0,0.00013273,2]
[399370112,1766322639380,-165.81830667,0.00013273,2]
[399370113,1766322639390,-500.0,0.00013273,2]
[399370114,1766322639401,-500.0,0.00013273,2]
[399370115,1766322639412,-160.24966058,0.00013273,2]
[399370116,1766322639428,-500.0,0.00013273,2]
[399370117,1766322639437,-276.49556074,0.00013273,2]
[399370118,1766322639447,-500.0,0.00013273,2]
[399370119,1766322639456,-500.0,0.00013273,2]
[399370120,1766322639466,-500.0,0.00013273,2]
[399370121,1766322639476,-500.0,0.00013273,2]
[399370122,1766322639486,-162.06342056,0.00013273,2]
[399370123,1766322639496,-168.62041939,0.00013273,2]
[399370124,1766322639506,-500.0,0.00013273,2]
[399370125,1766322639516,-500.0,0.00013273,2]
[399370126,1766322639526,-500.0,0.00013273,2]
[399370127,1766322639535,-500.0,0.00013273,2]
[399370128,1766322639546,-500.0,0.00013273,2]
[399370129,1766322639556,-500.0,0.00013273,2]
[399370130,1766322639568,-176.68955298,0.00013273,2]
[399370131,1766322639579,-500.0,0.00013273,2]
[399370132,1766322639588,-500.0,0.00013273,2]
[399370133,1766322639598,-500.0,0.00013273,2]
[399370134,1766322639607,-500.0,0.00013273,2]
[399370135,1766322639617,-165.33365869,0.00013273,2]
[399370136,1766322639627,-500.0,0.00013273,2]
[399370137,1766322639636,-216.30072536,0.00013273,2]
[399370138,1766322639648,-162.88863399,0.00013273,2]
[399370139,1766322639657,-515.90612576,0.00013273,2]
[399370140,1766322639667,-179.52644703,0.00013273,2]
[399370141,1766322639677,-500.0,0.00013273,2]
[399370142,1766322639687,-201.68060624,0.00013273,2]
[399370143,1766322639696,-500.0,0.00013273,2]
[399370144,1766322639706,-500.0,0.00013273,2]
[399370145,1766322639715,-500.0,0.00013273,2]
[399370146,1766322639725,-165.47156837,0.00013273,2]
[399370147,1766322639734,-1643.68,0.00013273,2]
[399370148,1766322639745,-227.6,0.00013314,2]
[399370149,1766322639755,-1247.43296404,0.00013372,2]
[399370150,1766322639764,-352.8662419,0.00013536,2]
[399370151,1766322639774,-1643.68,0.00013547,2]
[399370152,1766322639784,-209.6,0.00013554,2]
[399370153,1766322639793,-175.52294238,0.00013649,2]
[399370154,1766322639804,-433.0,0.00013649,2]
[399370155,1766322639814,-287.0,0.00013663,2]
[399370156,1766322639823,-1745.75785613,0.00013686,2]
[399370157,1766322639833,-500.0,0.00013698,2]
[399370158,1766322639842,-500.0,0.00013698,2]
[399370159,1766322639852,-500.0,0.00013698,2]
[399370160,1766322639861,-500.0,0.00013698,2]
[399370161,1766322639871,-500.0,0.00013698,2]
[399370162,1766322639886,-500.0,0.00013698,2]
[399370163,1766322639895,-500.0,0.00013698,2]
[399370164,1766322639905,-500.0,0.00013698,2]
[399370165,1766322639915,-500.0,0.00013698,2]
[399370166,1766322639925,-500.0,0.00013698,2]
[399370167,1766322639935,-500.0,0.00013698,2]
[399370168,1766322639944,-500.0,0.00013698,2]
[399370169,1766322639954,-500.0,0.00013698,2]
[399370170,1766322639963,-500.0,0.00013698,2]
[399370171,1766322639973,-567.20870026,0.00013698,2]
[399370172,1766322639983,-500.0,0.00013698,2]
[399370173,1766322639993,-500.0,0.00013698,2]
[399370174,1766322640002,-500.0,0.00013698,2]
[399370175,1766322640012,-500.0,0.00013698,2]
[399370176,1766322640022,-500.0,0.00013698,2]
[399370177,1766322640031,-500.0,0.00013698,2]
[399370178,1766322640042,-500.0,0.00013698,2]
[399370179,1766322640051,-510.69307451,0.00013698,2]
[399370180,1766322640061,-500.0,0.00013698,2]
[399370181,1766322640071,-500.0,0.00013698,2]
[399370182,1766322640081,-500.0,0.00013698,2]
[399370183,1766322640092,-500.0,0.00013698,2]
[399370184,1766322640102,-500.0,0.00013698,2]
[399370185,1766322640112,-500.0,0.00013698,2]
[399370186,1766322640122,-500.0,0.00013698,2]
[399370187,1766322640132,-500.0,0.00013698,2]
[399370188,1766322640141,-500.0,0.00013698,2]
[399370189,1766322640152,-500.0,0.00013698,2]
[399370190,1766322640162,-500.0,0.00013698,2]
[399370191,1766322640172,-500.0,0.00013698,2]
[399370192,1766322640182,-500.0,0.00013698,2]
[399370193,1766322640192,-500.0,0.00013698,2]
[399370199,1766322640607,-500.0,0.00013698,2]
[399370200,1766322640688,-500.0,0.00013698,2]
[399370201,1766322640699,-500.0,0.00013698,2]
[399370202,1766322640709,-500.0,0.00013698,2]
[399370203,1766322640718,-500.0,0.00013698,2]
[399370204,1766322640728,-500.0,0.00013698,2]
[399370205,1766322640737,-511.95166241,0.00013698,2]
[399370206,1766322640746,-500.0,0.00013698,2]
[399370207,1766322640755,-500.0,0.00013698,2]
[399370208,1766322640765,-500.0,0.00013698,2]
[399370209,1766322640774,-344.15406571,0.00013698,2]
[399370210,1766322640783,-500.0,0.00013698,2]
[399370211,1766322640792,-500.0,0.00013698,2]
[399370212,1766322640801,-500.0,0.00013698,2]
[399370213,1766322640811,-500.0,0.00013698,2]
[399370214,1766322640820,-500.0,0.00013698,2]
[399370215,1766322640829,-500.0,0.00013698,2]
[399370216,1766322640838,-500.0,0.00013698,2]
[399370217,1766322640848,-500.0,0.00013698,2]
[399370218,1766322640857,-500.0,0.00013698,2]
[399370219,1766322640866,-500.0,0.00013698,2]
[399370220,1766322640875,-500.0,0.00013698,2]
[399370221,1766322640885,-500.0,0.00013698,2]
[399370222,1766322640895,-500.0,0.00013698,2]
[399370223,1766322640904,-500.0,0.00013698,2]
[399370224,1766322640914,-500.0,0.00013698,2]
[399370225,1766322640923,-1000.0,0.00013699,2]
[399370227,1766322640932,-196.43,0.00013699,2]
[399370228,1766322640941,-500.0,0.00013699,2]
[399370229,1766322640950,-500.0,0.00013699,2]
[399370230,1766322640960,-500.0,0.00013699,2]
[399370231,1766322640969,-500.0,0.00013699,2]
[399370232,1766322640978,-500.0,0.00013699,2]
[399370233,1766322640987,-500.0,0.00013699,2]
[399370234,1766322640997,-500.0,0.00013699,2]
[399370235,1766322641006,-500.0,0.00013699,2]
[399370236,1766322641016,-500.0,0.00013699,2]
[399370237,1766322641025,-500.0,0.00013699,2]
[399370238,1766322641035,-500.0,0.00013699,2]
[399370239,1766322641044,-500.0,0.00013699,2]
[399370240,1766322641054,-500.0,0.00013699,2]
[399370241,1766322641063,-500.0,0.00013699,2]
[399370242,1766322641073,-550.0,0.00013699,2]
[399370243,1766322641082,-500.0,0.00013699,2]
[399370244,1766322641092,-500.0,0.00013699,2]
[399370245,1766322641101,-500.0,0.00013699,2]
[399370246,1766322641110,-500.0,0.00013699,2]
[399370247,1766322641119,-500.0,0.00013699,2]
[399370248,1766322641129,-500.0,0.00013699,2]
[399370249,1766322641138,-264.93246006,0.00013699,2]
[399370250,1766322641147,-500.0,0.00013699,2]
[399370251,1766322641156,-500.0,0.00013699,2]
[399370252,1766322641166,-500.0,0.00013699,2]
[399370253,1766322641175,-500.0,0.00013699,2]
[399370254,1766322641184,-500.0,0.00013699,2]
[399370255,1766322641194,-500.0,0.00013699,2]
[399370256,1766322641203,-500.0,0.00013699,2]
[399370257,1766322641213,-2351.0,0.000137,2]
[399370258,1766322641222,-5487.0,0.000138,2]
[399370259,1766322641231,-501.0380524,0.00013821,2]
[399370260,1766322641240,-1001.62490087,0.00013821,2]
[399370261,1766322641250,-208.16009032,0.00013821,2]
[399370262,1766322641259,-1000.0,0.00013821,2]
[399370263,1766322641268,-1000.0,0.00013821,2]
[399370264,1766322641278,-514.63903632,0.00013821,2]
[399370265,1766322641289,-453.53849539,0.00013821,2]
[399370266,1766322641298,-1000.0,0.00013821,2]
[399370267,1766322641307,-1000.0,0.00013821,2]
[399370268,1766322641316,-1000.0,0.00013821,2]
[399370269,1766322641325,-1000.0,0.00013821,2]
[399370270,1766322641334,-1000.0,0.00013821,2]
[399370271,1766322641343,-789.33467407,0.00013821,2]
[399370272,1766322641353,-1000.0,0.00013821,2]
[399370273,1766322641362,-484.06013596,0.00013821,2]
[399370274,1766322641372,-1000.0,0.00013821,2]
[399370275,1766322641381,-1000.0,0.00013821,2]
[399370276,1766322641390,-500.84654228,0.00013821,2]
[399370277,1766322641400,-1000.0,0.00013821,2]
[399370278,1766322641410,-535.22474582,0.00013821,2]
[399370279,1766322641419,-1001.10835573,0.00013821,2]
[399370280,1766322641428,-572.75082077,0.00013821,2]
[399370281,1766322641437,-627.6344399,0.00013821,2]
[399370282,1766322641446,-1000.0,0.00013821,2]
[399370283,1766322641456,-1000.0,0.00013821,2]
[399370284,1766322641466,-1000.0,0.00013821,2]
[399370285,1766322641475,-594.78120498,0.00013821,2]
[399370286,1766322641484,-235.55154497,0.00013821,2]
[399370287,1766322641493,-1000.0,0.00013821,2]
[399370288,1766322641503,-1000.0,0.00013821,2]
[399370289,1766322641512,-1643.68,0.00013821,2]
[399370290,1766322641522,-1000.0,0.00013847,2]
[399370291,1766322641531,-11643.22209029,0.00013858,2]
[399370292,1766322641541,-150.0,0.00013863,2]
[399370293,1766322641550,-500.0,0.00013863,2]
[399370294,1766322641560,-1450.90777091,0.00013887,2]
[399370295,1766322641572,-166.66,0.0001397,2]
[399370296,1766322641582,-763.1939596,0.00014026,2]
[399370297,1766322641591,-15287.0086892,0.00014028,2]
[399370298,1766322641600,-620.06302977,0.00014035,2]
[399370299,1766322641611,-1643.68,0.00014095,2]
[399370300,1766322641620,-1643.68,0.00014368,2]
[399370301,1766322641629,-1500.0,0.00014368,2]
[399370302,1766322641639,-366.15226393,0.00014368,2]
[399370303,1766322641647,-1211.67995912,0.00014368,2]
[399370304,1766322641656,-1500.0,0.00014368,2]
[399370305,1766322641666,-1504.443568,0.00014368,2]
[399370306,1766322641675,-644.26340267,0.00014368,2]
[399370307,1766322641684,-1501.58945381,0.00014368,2]
[399370308,1766322641693,-1500.0,0.00014368,2]
[399370309,1766322641703,-1500.0,0.00014368,2]
[399370310,1766322641712,-1500.0,0.00014368,2]
[399370311,1766322641721,-1500.0,0.00014368,2]
[399370312,1766322641730,-1500.0,0.00014368,2]
[399370313,1766322641739,-1500.0,0.00014368,2]
[399370314,1766322641747,-1500.0,0.00014368,2]
[399370315,1766322641756,-503.74441146,0.00014368,2]
[399370316,1766322641765,-1600.0,0.0001443,2]
[399370317,1766322641774,-166.66,0.00014431,2]
[399370318,1766322641783,-500.0,0.00014466,2]
[399370319,1766322641792,-500.0,0.00014466,2]
[399370320,1766322641801,-500.0,0.00014466,2]
[399370321,1766322641810,-500.0,0.00014466,2]
[399370322,1766322641819,-11643.22209029,0.00014466,2]
[399370323,1766322641829,-449.0,0.00014493,2]
[399370324,1766322641838,-151.0,0.00014592,2]
[399370325,1766322641847,-151.0,0.00014633,2]
[399370326,1766322641856,-300.0,0.00014637,2]
[399370327,1766322641864,-200.0,0.00014637,2]
[399370328,1766322641873,-207.4,0.00014637,2]
[399370329,1766322641883,-215.0738,0.00014637,2]
[399370330,1766322641892,-223.0315306,0.00014637,2]
[399370331,1766322641901,-231.28369723,0.00014637,2]
[399370332,1766322641909,-239.84119403,0.00014637,2]
[399370333,1766322641918,-248.71531821,0.00014637,2]
[399370334,1766322641927,-257.91778498,0.00014637,2]
[399370335,1766322641936,-267.46074303,0.00014637,2]
[399370336,1766322641945,-1643.68,0.00014642,2]
[399370337,1766322641954,-1539.26800573,0.00014708,2]
[399370338,1766322641963,-166.66,0.00014892,2]
[399370339,1766322641972,-1643.68,0.00014916,2]
[399370340,1766322641982,-1138.30499273,0.00014916,2]
[399370341,1766322641991,-2000.0,0.00014916,2]
[399370342,1766322642000,-2000.0,0.00014916,2]
[399370343,1766322642010,-1454.77156402,0.00014916,2]
[399370344,1766322642019,-736.0,0.00014917,2]
[399370345,1766322642030,-6774.0,0.00014998,2]
[399370346,1766322642040,-3292.0,0.0001507,2]
[399370347,1766322642049,-11643.22209029,0.00015075,2]
[399370348,1766322642058,-152.68,0.00015118,2]
[399370349,1766322642068,-162.0,0.00015123,2]
[399370350,1766322642077,-1643.68,0.0001519,2]
[399370351,1766322642087,-500.0,0.00015199,2]
[399370352,1766322642096,-763.1939596,0.00015281,2]
[399370353,1766322642105,-15287.0086892,0.00015284,2]
[399370354,1766322642114,-150.0,0.00015288,2]
[399370355,1766322642123,-150.0,0.00015288,2]
[399370356,1766322642132,-150.0,0.00015288,2]
[399370357,1766322642141,-152.05425159,0.00015288,2]
[399370358,1766322642151,-150.0,0.00015288,2]
[399370359,1766322642160,-150.0,0.00015288,2]
[399370360,1766322642169,-150.0,0.00015288,2]
[399370361,1766322642179,-150.0,0.00015288,2]
[399370362,1766322642188,-150.0,0.00015288,2]
[399370363,1766322642197,-150.0,0.00015288,2]
[399370364,1766322642206,-151.68546767,0.00015288,2]
[399370365,1766322642215,-150.0,0.00015288,2]
[399370366,1766322642224,-150.0,0.00015288,2]
[399370367,1766322642234,-150.89972091,0.00015288,2]
[399370368,1766322642243,-150.0,0.00015288,2]
[399370369,1766322642252,-9999.99,0.0001531,2]
[399370370,1766322642261,-6282.98,0.0001531,2]
[399370371,1766322642270,-150.0,0.00015353,2]
[399370372,1766322642280,-166.66,0.00015353,2]
[399370373,1766322642289,-150.0,0.00015358,2]
[399370374,1766322642299,-150.0,0.00015373,2]
[399370375,1766322642308,-150.0,0.00015418,2]
[399370376,1766322642317,-150.0,0.00015418,2]
[399370377,1766322642326,-150.0,0.00015429,2]